bitfinex/quotes_BTCUSD_20241009
["timestamp","ask_amount","ask_price","bid_price","bid_amount"]
[1728461401445,0.22743685,62211.0,62210.0,0.024821]
[1728461401672,0.12933034,62211.0,62210.0,0.024821]
[1728461401935,0.29007334,62211.0,62210.0,0.024821]
[1728461402167,0.0079974,62211.0,62210.0,0.024821]
[1728461402394,0.0079974,62211.0,62210.0,0.262166]
[1728461404477,0.12933034,62211.0,62210.0,0.101421]
[1728461404701,0.35603075,62211.0,62210.0,0.024821]
[1728461406150,0.29007334,62211.0,62210.0,0.024821]
[1728461406608,0.0079974,62211.0,62210.0,0.024821]
[1728461407293,0.1687404,62211.0,62210.0,0.024821]
[1728461408238,0.0079974,62211.0,62210.0,0.024821]
[1728461408483,0.0079974,62211.0,62210.0,0.185566]
[1728461408717,0.0079974,62211.0,62210.0,0.355266]
[1728461409171,0.001642,62211.0,62210.0,0.355266]
[1728461412433,0.001642,62211.0,62210.0,0.51067944]
[1728461412885,0.001642,62211.0,62210.0,0.52573295]
[1728461413804,0.001642,62211.0,62210.0,0.51373295]
[1728461414031,0.001642,62211.0,62210.0,0.52573295]
[1728461414253,0.001642,62211.0,62210.0,0.51373295]
[1728461414514,0.005642,62211.0,62210.0,0.60973295]
[1728461415529,0.001642,62211.0,62210.0,0.63173295]
[1728461415822,0.001642,62211.0,62210.0,0.66390295]
[1728461416061,0.002,62215.0,62214.0,0.65388928]
[1728461416290,0.002,62215.0,62214.0,0.82435623]
[1728461417464,0.002,62215.0,62214.0,0.82433181]
[1728461417929,0.002,62215.0,62214.0,0.64547753]
[1728461418155,0.002,62215.0,62214.0,0.63947753]
[1728461418664,0.002,62215.0,62214.0,0.64247753]
[1728461419395,0.002,62215.0,62214.0,0.82733181]
[1728461419631,0.002,62215.0,62214.0,0.83333181]
[1728461419863,0.002,62215.0,62214.0,0.83033181]
[1728461420091,0.002,62215.0,62214.0,0.82433181]
[1728461420362,0.002,62215.0,62214.0,0.81530272]
[1728461420620,0.002,62215.0,62214.0,0.83031995]
[1728461420863,0.002,62215.0,62214.0,0.82431995]
[1728461421293,0.002,62215.0,62214.0,0.83131995]
[1728461421580,0.002,62215.0,62214.0,0.82631995]
[1728461421801,0.002,62215.0,62214.0,0.82831995]
[1728461422245,0.003642,62215.0,62214.0,0.82831995]
[1728461428458,0.003642,62215.0,62214.0,0.76468932]
[1728461428927,0.003642,62215.0,62214.0,0.76268932]
[1728461429144,0.003642,62215.0,62214.0,0.76868932]
[1728461429784,0.003642,62215.0,62214.0,0.76268932]
[1728461430203,0.003642,62215.0,62214.0,0.76868932]
[1728461430419,0.003642,62215.0,62214.0,0.75367209]
[1728461430639,0.003642,62215.0,62214.0,0.76268088]
[1728461430853,0.003642,62215.0,62214.0,0.76468085]
[1728461431752,0.003642,62215.0,62214.0,0.76068085]
[1728461432194,0.004642,62215.0,62214.0,0.76068085]
[1728461432652,0.003642,62215.0,62214.0,0.76068085]
[1728461433122,0.003642,62215.0,62214.0,0.79589085]
[1728461433776,0.003642,62215.0,62214.0,0.79889085]
[1728461433998,0.003642,62215.0,62214.0,0.79589334]
[1728461434237,0.003642,62215.0,62214.0,0.80289334]
[1728461434487,0.003642,62215.0,62214.0,0.85934778]
[1728461434921,0.003642,62215.0,62214.0,0.86634778]
[1728461435116,0.003642,62215.0,62214.0,0.86334778]
[1728461435335,0.003642,62215.0,62214.0,0.87034778]
[1728461435584,0.002,62219.0,62218.0,0.496935]
[1728461435817,0.002,62219.0,62218.0,0.85203778]
[1728461437138,0.002,62222.0,62221.0,0.399727]
[1728461437354,0.002,62222.0,62221.0,0.66835955]
[1728461439354,0.002,62222.0,62221.0,0.67261053]
[1728461439591,0.002,62222.0,62221.0,0.68161053]
[1728461442517,0.002,62222.0,62221.0,0.44640053]
[1728461442749,0.002,62222.0,62221.0,0.44040053]
[1728461442988,0.002,62222.0,62221.0,0.44540053]
[1728461443696,0.002,62222.0,62221.0,0.44140053]
[1728461443916,0.002,62222.0,62221.0,0.44240053]
[1728461444374,0.002,62222.0,62221.0,0.42738142]
[1728461444637,0.002,62222.0,62221.0,0.44243081]
[1728461445789,0.003642,62222.0,62221.0,0.44243081]
[1728461446478,0.003642,62222.0,62221.0,0.44143081]
[1728461446953,0.004642,62222.0,62221.0,0.44043081]
[1728461447413,0.003642,62222.0,62221.0,0.44043081]
[1728461458221,0.003642,62222.0,62221.0,0.42538142]
[1728461458428,0.003642,62222.0,62221.0,0.44043988]
[1728461460774,0.003642,62222.0,62221.0,0.44243988]
[1728461460978,0.003642,62222.0,62221.0,0.42738142]
[1728461461184,0.003642,62222.0,62221.0,0.44244045]
[1728461461458,0.003642,62222.0,62221.0,0.44044045]
[1728461461677,0.003642,62222.0,62221.0,0.66239955]
[1728461461900,0.003642,62222.0,62221.0,0.76685005]
[1728461462111,0.003642,62222.0,62221.0,0.69460955]
[1728461462533,0.003642,62222.0,62221.0,0.79096695]
[1728461462796,0.003642,62222.0,62221.0,0.8451509]
[1728461463004,0.003642,62222.0,62221.0,0.8491509]
[1728461463212,0.003642,62222.0,62221.0,0.8451509]
[1728461463429,0.003642,62222.0,62221.0,0.83509187]
[1728461463677,0.003642,62222.0,62221.0,0.83009187]
[1728461464155,0.003642,62222.0,62221.0,0.82003277]
[1728461464372,0.003642,62222.0,62221.0,0.83108776]
[1728461464599,0.00160006,62225.0,62224.0,0.167709]
[1728461464828,0.00160006,62225.0,62224.0,1.00381175]
[1728461465058,0.00160006,62225.0,62224.0,1.0246882]
[1728461465305,0.00160006,62225.0,62224.0,0.92430355]
[1728461465527,0.00160006,62225.0,62224.0,0.85406552]
[1728461466218,0.00160006,62225.0,62224.0,0.86406552]
[1728461466436,0.00160006,62225.0,62224.0,0.85906552]
[1728461466661,0.00160006,62225.0,62224.0,0.91322141]
[1728461466874,0.00160006,62225.0,62224.0,0.90722141]
[1728461467103,0.00160006,62225.0,62224.0,0.90722202]
[1728461467343,0.00160006,62225.0,62224.0,0.91122202]
[1728461467541,0.00160006,62225.0,62224.0,0.90222202]
[1728461467797,0.00160006,62225.0,62224.0,0.90422202]
[1728461467984,0.00160006,62225.0,62224.0,0.85606552]
[1728461468422,0.00160006,62225.0,62224.0,0.85806552]
[1728461469062,0.00160006,62225.0,62224.0,0.86206552]
[1728461469478,0.00160006,62225.0,62224.0,0.86006552]
[1728461469930,0.00160006,62225.0,62224.0,0.86606552]
[1728461470145,0.00160006,62225.0,62224.0,0.67938743]
[1728461470415,0.00160006,62225.0,62224.0,0.58158743]
[1728461470632,0.00160006,62225.0,62224.0,0.54937743]
[1728461471065,0.00160006,62225.0,62224.0,0.52237743]
[1728461471481,0.00160006,62225.0,62224.0,0.50732244]
[1728461471743,0.00160006,62225.0,62224.0,0.52237235]
[1728461471957,0.00160006,62225.0,62224.0,0.51837235]
[1728461472183,0.00160006,62225.0,62224.0,0.51437235]
[1728461472809,0.00160006,62225.0,62224.0,0.72205044]
[1728461473524,0.00160006,62225.0,62224.0,0.70900053]
[1728461473743,0.00160006,62225.0,62224.0,0.72404924]
[1728461474157,0.00160006,62225.0,62224.0,0.72204924]
[1728461474591,0.00160006,62225.0,62224.0,0.72404924]
[1728461475505,0.00260006,62225.0,62224.0,0.72204924]
[1728461475727,0.00260006,62225.0,62224.0,0.51437115]
[1728461476387,0.00260006,62225.0,62224.0,0.51437179]
[1728461476594,0.00260006,62225.0,62224.0,0.53845079]
[1728461479648,0.00260006,62225.0,62224.0,0.56345079]
[1728461480337,0.00260006,62225.0,62224.0,0.73632814]
[1728461480570,0.00260006,62225.0,62224.0,0.68816079]
[1728461480789,0.00260006,62225.0,62224.0,0.76041182]
[1728461481024,0.00160006,62225.0,62224.0,0.76041182]
[1728461481480,0.00160006,62225.0,62224.0,0.76641182]
[1728461481961,0.00160006,62225.0,62224.0,0.76041182]
[1728461482908,0.00160006,62225.0,62224.0,0.76641182]
[1728461483393,0.00160006,62225.0,62224.0,0.77241182]
[1728461483623,0.00160006,62225.0,62224.0,0.70016079]
[1728461483854,0.001644,62241.0,62240.0,0.005]
[1728461484087,0.001644,62241.0,62240.0,0.43613079]
[1728461484321,0.0108215,62241.0,62240.0,0.43613079]
[1728461484587,0.001644,62241.0,62240.0,0.43613079]
[1728461485038,0.001644,62241.0,62240.0,0.44113079]
[1728461485275,0.001644,62241.0,62240.0,0.44613079]
[1728461487590,0.001644,62241.0,62240.0,0.43906374]
[1728461487821,0.001644,62241.0,62240.0,0.45410889]
[1728461488058,0.001644,62241.0,62240.0,0.46915404]
[1728461490771,0.001644,62241.0,62240.0,0.47334476]
[1728461491628,0.001644,62241.0,62240.0,0.45829961]
[1728461491872,0.001644,62241.0,62240.0,0.47334686]
[1728461494428,0.001644,62241.0,62240.0,0.45830171]
[1728461494929,0.001644,62241.0,62240.0,0.45330171]
[1728461495193,0.001644,62241.0,62240.0,0.45830171]
[1728461498893,0.001644,62241.0,62240.0,0.44325446]
[1728461499132,0.001644,62241.0,62240.0,0.458297]
[1728461500624,0.001644,62241.0,62240.0,0.536297]
[1728461500845,0.001644,62241.0,62240.0,0.534297]
[1728461501329,0.001644,62241.0,62240.0,0.536297]
[1728461501573,0.001644,62241.0,62240.0,0.534297]
[1728461505531,0.001644,62241.0,62240.0,0.51925446]
[1728461505768,0.001644,62241.0,62240.0,0.53429096]
[1728461508562,0.001644,62241.0,62240.0,0.53629096]
[1728461508763,0.001644,62241.0,62240.0,0.53429096]
[1728461509234,0.001644,62241.0,62240.0,0.45829867]
[1728461509970,0.001644,62241.0,62240.0,0.45329867]
[1728461510209,0.001644,62241.0,62240.0,0.44829867]
[1728461510441,0.001644,62241.0,62240.0,0.46129867]
[1728461511564,0.001644,62241.0,62240.0,0.46229867]
[1728461511824,0.001644,62241.0,62240.0,0.44829867]
[1728461512259,0.001644,62241.0,62240.0,0.44929867]
[1728461512488,0.001644,62241.0,62240.0,0.44831288]
[1728461512713,0.001644,62241.0,62240.0,0.45831288]
[1728461513382,0.001644,62241.0,62240.0,0.45331288]
[1728461514482,0.001644,62241.0,62240.0,0.44831288]
[1728461515673,0.001644,62241.0,62240.0,0.52451288]
[1728461515909,0.001644,62241.0,62240.0,0.50945446]
[1728461516139,0.001644,62241.0,62240.0,0.52451553]
[1728461516663,0.001644,62241.0,62240.0,0.70919362]
[1728461518089,0.001644,62241.0,62240.0,0.71319362]
[1728461518576,0.001644,62241.0,62240.0,0.71119362]
[1728461518819,0.001644,62241.0,62240.0,0.71319362]
[1728461519048,0.001644,62241.0,62240.0,0.73619362]
[1728461519271,0.001644,62241.0,62240.0,0.72313255]
[1728461519516,0.001644,62241.0,62240.0,0.73619163]
[1728461519744,0.001644,62241.0,62240.0,0.73619114]
[1728461519989,0.001644,62241.0,62240.0,0.73819114]
[1728461520202,0.001644,62241.0,62240.0,0.73619114]
[1728461521548,0.001644,62241.0,62240.0,0.52851305]
[1728461521778,0.001644,62241.0,62240.0,0.51345446]
[1728461522002,0.001644,62241.0,62240.0,0.5285136]
[1728461522441,0.001644,62241.0,62240.0,0.5245136]
[1728461522655,0.001644,62241.0,62240.0,0.5305136]
[1728461523017,0.001644,62241.0,62240.0,0.52929183]
[1728461523959,0.001644,62241.0,62240.0,0.52629183]
[1728461524130,0.001644,62241.0,62240.0,0.52329183]
[1728461525416,0.001644,62241.0,62240.0,0.52429183]
[1728461527175,0.001644,62241.0,62240.0,0.52329183]
[1728461527814,0.001644,62241.0,62240.0,0.52411183]
[1728461532067,0.001644,62241.0,62240.0,0.44791183]
[1728461534425,0.001644,62241.0,62240.0,0.44791611]
[1728461537302,0.001644,62241.0,62240.0,0.44291611]
[1728461537542,0.001644,62241.0,62240.0,0.43493381]
[1728461539223,0.001644,62241.0,62240.0,0.4349327]
[1728461542432,0.001644,62241.0,62240.0,0.41987039]
[1728461542668,0.001644,62241.0,62240.0,0.43493246]
[1728461543367,0.001644,62241.0,62240.0,0.54103246]
[1728461543617,0.001644,62241.0,62240.0,0.57324246]
[1728461543876,0.001644,62241.0,62240.0,0.62144049]
[1728461544315,0.001644,62241.0,62240.0,0.62544049]
[1728461544537,0.001644,62241.0,62240.0,0.57724246]
[1728461544789,0.001644,62241.0,62240.0,0.66644246]
[1728461545027,0.001644,62241.0,62240.0,0.73873951]
[1728461545254,0.001644,62241.0,62240.0,0.73773951]
[1728461545476,0.001644,62241.0,62240.0,0.66544246]
[1728461545708,0.001644,62241.0,62240.0,0.66344246]
[1728461545930,0.001644,62241.0,62240.0,0.65038039]
[1728461546150,0.001644,62241.0,62240.0,0.66343958]
[1728461546917,0.001644,62241.0,62240.0,0.67743958]
[1728461548501,0.001644,62241.0,62240.0,0.67543958]
[1728461550614,0.001644,62241.0,62240.0,0.66343958]
[1728461550842,0.001644,62241.0,62240.0,0.67943958]
[1728461551308,0.001644,62241.0,62240.0,0.67143958]
[1728461551529,0.001644,62241.0,62240.0,0.66843958]
[1728461552444,0.001644,62241.0,62240.0,0.71662047]
[1728461552680,0.001644,62241.0,62240.0,0.65338039]
[1728461553370,0.001644,62241.0,62240.0,0.66843529]
[1728461553573,0.001644,62241.0,62240.0,0.67343529]
[1728461553799,0.001644,62241.0,62240.0,0.66843529]
[1728461554536,0.001644,62241.0,62240.0,0.67343529]
[1728461554752,0.001644,62241.0,62240.0,0.67543529]
[1728461554968,0.001644,62241.0,62240.0,0.67343529]
[1728461556113,0.001644,62241.0,62240.0,0.67543529]
[1728461556565,0.001644,62241.0,62240.0,0.73265125]
[1728461556835,0.001644,62241.0,62240.0,0.73770279]
[1728461557304,0.001644,62241.0,62240.0,0.74770279]
[1728461557525,0.001644,62241.0,62240.0,0.74270279]
[1728461557751,0.001644,62241.0,62240.0,0.74470279]
[1728461557945,0.001644,62241.0,62240.0,0.75170279]
[1728461559581,0.001644,62241.0,62240.0,0.75170048]
[1728461560476,0.001644,62241.0,62240.0,0.87279542]
[1728461562064,0.001644,62241.0,62240.0,0.80052456]
[1728461562755,0.001644,62241.0,62240.0,0.97113693]
[1728461565476,0.001644,62241.0,62240.0,0.8506855]
[1728461566595,0.001644,62241.0,62240.0,0.85068321]
[1728461566831,0.001644,62241.0,62240.0,0.80052227]
[1728461567061,0.001644,62241.0,62240.0,0.89482568]
[1728461567288,0.001644,62241.0,62240.0,0.89682568]
[1728461567479,0.001644,62241.0,62240.0,0.89482568]
[1728461567756,0.001644,62241.0,62240.0,0.87274665]
[1728461567988,0.001644,62241.0,62240.0,0.80052227]
[1728461568205,0.001644,62241.0,62240.0,0.89682568]
[1728461568508,0.001644,62241.0,62240.0,0.80052227]
[1728461568846,0.001644,62241.0,62240.0,0.79852227]
[1728461569834,0.001644,62241.0,62240.0,0.78347533]
[1728461570063,0.001644,62241.0,62240.0,0.7985285]
[1728461570493,0.001644,62241.0,62240.0,0.84868355]
[1728461571791,0.001644,62241.0,62240.0,0.87074081]
[1728461572226,0.001644,62241.0,62240.0,0.92290101]
[1728461572443,0.001644,62241.0,62240.0,0.92290039]
[1728461573349,0.001644,62241.0,62240.0,0.90784722]
[1728461573562,0.001644,62241.0,62240.0,0.92290924]
[1728461573767,0.001644,62241.0,62240.0,0.87274904]
[1728461573976,0.001644,62241.0,62240.0,0.92292321]
[1728461574190,0.001644,62241.0,62240.0,0.85071152]
[1728461574427,0.001644,62241.0,62240.0,0.92292047]
[1728461576925,0.001644,62241.0,62240.0,0.92292242]
[1728461577159,0.001644,62241.0,62240.0,0.90785845]
[1728461577379,0.001644,62241.0,62240.0,0.92292081]
[1728461578266,0.001644,62241.0,62240.0,0.85071347]
[1728461579179,0.001644,62241.0,62240.0,0.84871347]
[1728461581130,0.001644,62241.0,62240.0,0.85071347]
[1728461581376,0.001644,62241.0,62240.0,0.9470087]
[1728461582305,0.001644,62241.0,62240.0,0.9450087]
[1728461582574,0.001644,62241.0,62240.0,0.82591376]
[1728461582833,0.001644,62241.0,62240.0,0.93194473]
[1728461583119,0.001644,62241.0,62240.0,0.94701128]
[1728461584491,0.001644,62241.0,62240.0,0.85071605]
[1728461585380,0.001644,62241.0,62240.0,0.97108509]
[1728461585585,0.001644,62241.0,62240.0,0.85071605]
[1728461585769,0.001644,62241.0,62240.0,0.97116429]
[1728461586094,1e-06,62241.0,62240.0,0.8356495]
[1728461586312,1e-06,62241.0,62240.0,0.99525585]
[1728461586514,0.0964,62262.0,62261.0,0.160614]
[1728461586749,0.0964,62262.0,62261.0,0.3310959]
[1728461588010,0.0964,62262.0,62261.0,0.3320959]
[1728461588705,0.0964,62262.0,62261.0,0.3330959]
[1728461591744,0.0994,62266.0,62265.0,0.160603]
[1728461591977,0.0994,62266.0,62265.0,0.31601644]
[1728461592239,0.0994,62266.0,62265.0,0.33107497]
[1728461592454,0.0994,62266.0,62265.0,0.31601644]
[1728461593087,0.0994,62266.0,62265.0,0.33001644]
[1728461593320,0.0994,62266.0,62265.0,0.34507362]
[1728461593544,0.0994,62266.0,62265.0,0.33001644]
[1728461595344,0.0994,62266.0,62265.0,0.34401644]
[1728461595562,0.0994,62266.0,62265.0,0.188603]
[1728461596866,0.0994,62266.0,62265.0,0.174603]
[1728461597300,0.0994,62266.0,62265.0,0.188603]
[1728461597515,0.0994,62266.0,62265.0,0.174603]
[1728461597724,0.0994,62266.0,62265.0,0.188603]
[1728461598623,0.1057011,62266.0,62265.0,0.188603]
[1728461600323,0.1073431,62266.0,62265.0,0.188603]
[1728461601395,0.1073431,62266.0,62265.0,0.028]
[1728461601630,0.1594647,62266.0,62265.0,0.028]
[1728461602158,0.3200657,62266.0,62265.0,0.028]
[1728461602396,0.2679441,62266.0,62265.0,0.028]
[1728461602645,0.1936584,62266.0,62265.0,0.028]
[1728461604078,0.1936584,62266.0,62265.0,0.188603]
[1728461604302,0.1936584,62266.0,62265.0,0.028]
[1728461605832,0.26582635,62266.0,62265.0,0.028]
[1728461606067,0.42642735,62266.0,62265.0,0.028]
[1728461606295,0.26181105,62266.0,62265.0,0.028]
[1728461606963,0.26582631,62266.0,62265.0,0.028]
[1728461608036,0.19365836,62266.0,62265.0,0.028]
[1728461609654,0.66530013,62266.0,62265.0,0.028]
[1728461609894,0.66128487,62266.0,62265.0,0.028]
[1728461611660,0.5278628,62266.0,62265.0,0.028]
[1728461611895,0.64895774,62266.0,62265.0,0.028]
[1728461614740,0.5278628,62266.0,62265.0,0.028]
[1728461614946,0.44552254,62266.0,62265.0,0.028]
[1728461615125,0.56661748,62266.0,62265.0,0.028]
[1728461616921,0.52627505,62266.0,62265.0,0.028]
[1728461617129,0.56661748,62266.0,62265.0,0.028]
[1728461617541,0.66282511,62266.0,62265.0,0.028]
[1728461617749,0.56661748,62266.0,62265.0,0.028]
[1728461619826,0.56660775,62266.0,62265.0,0.028]
[1728461620233,0.40600675,62266.0,62265.0,0.028]
[1728461620494,0.50221287,62266.0,62265.0,0.028]
[1728461620703,0.66281387,62266.0,62265.0,0.028]
[1728461624330,0.50221287,62266.0,62265.0,0.028]
[1728461624757,0.22843804,62266.0,62265.0,0.028]
[1728461624968,0.32865956,62266.0,62265.0,0.028]
[1728461625178,0.66281316,62266.0,62265.0,0.028]
[1728461626277,0.50221216,62266.0,62265.0,0.028]
[1728461626481,0.56660702,62266.0,62265.0,0.028]
[1728461627348,0.6628404,62266.0,62265.0,0.028]
[1728461627575,0.50223892,62266.0,62265.0,0.028]
[1728461627787,0.56660702,62266.0,62265.0,0.028]
[1728461628035,0.40600602,62266.0,62265.0,0.028]
[1728461628294,0.66284359,62266.0,62265.0,0.028]
[1728461628539,0.40600602,62266.0,62265.0,0.028]
[1728461628722,0.50224219,62266.0,62265.0,0.028]
[1728461628860,0.40600602,62266.0,62265.0,0.028]
[1728461629086,0.6628435,62266.0,62265.0,0.028]
[1728461629284,0.56660702,62266.0,62265.0,0.028]
[1728461629527,0.66284292,62266.0,62265.0,0.028]
[1728461630373,0.50224192,62266.0,62265.0,0.028]
[1728461631001,0.28174698,62266.0,62265.0,0.188603]
[1728461631243,0.05606703,62266.0,62265.0,0.188603]
[1728461631484,0.0079431,62266.0,62265.0,0.188603]
[1728461631725,0.0079431,62266.0,62265.0,0.369103]
[1728461632204,0.001642,62266.0,62265.0,0.369103]
[1728461633957,0.001642,62266.0,62265.0,0.37319545]
[1728461634204,0.001642,62266.0,62265.0,0.52860889]
[1728461634441,0.001642,62266.0,62265.0,0.61960889]
[1728461634936,0.001642,62266.0,62265.0,0.62260889]
[1728461635200,0.001642,62266.0,62265.0,0.61960889]
[1728461635945,0.001642,62266.0,62265.0,0.60560889]
[1728461636412,0.001642,62266.0,62265.0,0.60860889]
[1728461636919,0.001642,62266.0,62265.0,0.60560889]
[1728461637430,0.001642,62266.0,62265.0,0.50130889]
[1728461637674,0.001642,62266.0,62265.0,0.49721644]
[1728461638396,0.001642,62266.0,62265.0,0.341803]
[1728461639082,0.002642,62266.0,62265.0,0.341803]
[1728461639568,0.001642,62266.0,62265.0,0.341803]
[1728461639796,0.001642,62266.0,62265.0,0.241803]
[1728461640780,0.001642,62266.0,62265.0,0.247803]
[1728461641012,0.001642,62266.0,62265.0,0.241803]
[1728461641285,0.001642,62266.0,62265.0,0.39721644]
[1728461641532,0.001642,62266.0,62265.0,0.48771644]
[1728461641768,0.001642,62266.0,62265.0,0.62671644]
[1728461642260,0.001642,62266.0,62265.0,0.62071644]
[1728461642969,0.001642,62266.0,62265.0,0.61571644]
[1728461643417,0.001642,62266.0,62265.0,0.61671644]
[1728461644078,0.001642,62266.0,62265.0,0.58871644]
[1728461644305,0.001642,62266.0,62265.0,0.59371644]
[1728461644540,0.001642,62266.0,62265.0,0.58871644]
[1728461644753,0.001642,62266.0,62265.0,0.58771644]
[1728461654708,0.001642,62266.0,62265.0,0.49721644]
[1728461658085,0.001642,62266.0,62265.0,0.39721644]
[1728461668570,0.001642,62266.0,62265.0,0.51831138]
[1728461669245,0.001642,62266.0,62265.0,0.61601138]
[1728461670381,0.002642,62266.0,62265.0,0.49491644]
[1728461670832,0.001642,62266.0,62265.0,0.49491644]
[1728461671054,0.002642,62266.0,62265.0,0.49491644]
[1728461688583,0.002642,62266.0,62265.0,0.39721644]
[1728461693451,0.002642,62266.0,62265.0,0.39721644]
[1728461697598,0.002642,62266.0,62265.0,0.160603]
[1728461698056,0.01215174,62266.0,62265.0,0.160603]
[1728461700579,0.03069287,62266.0,62261.0,0.00423607]
[1728461700833,0.0722164,62263.0,62262.0,0.16061]
[1728461701064,0.10030346,62263.0,62260.0,0.160616]
[1728461701293,0.07221415,62262.0,62261.0,0.160613]
[1728461701522,0.08170992,62262.0,62261.0,0.160613]
[1728461701758,0.0576129,62262.0,62261.0,0.160613]
[1728461701987,0.0576129,62262.0,62261.0,0.163613]
[1728461702510,0.0576129,62262.0,62261.0,0.160613]
[1728461702511,0.01351123,62262.0,62261.0,0.160613]
[1728461702751,0.01351123,62262.0,62261.0,0.165613]
[1728461703000,0.00949577,62262.0,62261.0,0.244813]
[1728461703230,0.00949577,62262.0,62261.0,0.241813]
[1728461703713,0.00401534,62264.0,62263.0,0.160609]
[1728461703952,0.001642,62266.0,62265.0,0.160603]
[1728461704396,0.01113845,62266.0,62265.0,0.160603]
[1728461704618,0.001642,62266.0,62265.0,0.160603]
[1728461704865,0.01113845,62266.0,62265.0,0.160603]
[1728461705085,0.001642,62266.0,62265.0,0.160603]
[1728461705299,0.001642,62266.0,62265.0,0.174603]
[1728461705516,0.01113958,62266.0,62265.0,0.174603]
[1728461705730,0.01113958,62266.0,62265.0,0.160603]
[1728461706183,0.01113958,62266.0,62265.0,0.174603]
[1728461706403,0.01113958,62266.0,62265.0,0.188603]
[1728461706849,0.01113958,62266.0,62265.0,0.174603]
[1728461707069,0.01113958,62266.0,62265.0,0.188603]
[1728461707286,0.01113958,62266.0,62265.0,0.174603]
[1728461707511,0.01113958,62266.0,62265.0,0.160603]
[1728461707743,0.01113958,62266.0,62265.0,0.52621138]
[1728461707961,0.01113958,62266.0,62265.0,0.71661138]
[1728461708192,0.001642,62266.0,62265.0,0.71661138]
[1728461708617,0.001642,62266.0,62265.0,0.70261138]
[1728461709133,0.001642,62266.0,62265.0,0.70861138]
[1728461709578,0.001642,62266.0,62265.0,0.80271138]
[1728461709855,0.001642,62266.0,62265.0,0.78871138]
[1728461710307,0.002642,62266.0,62265.0,0.78271138]
[1728461710563,0.002642,62266.0,62265.0,0.78771138]
[1728461710794,0.003642,62266.0,62265.0,0.84292138]
[1728461711255,0.002642,62266.0,62265.0,0.84292138]
[1728461711490,0.001642,62266.0,62265.0,0.84292138]
[1728461711737,0.001642,62266.0,62265.0,0.84392138]
[1728461712244,0.001642,62266.0,62265.0,0.84292138]
[1728461713516,0.001642,62266.0,62265.0,0.85292138]
[1728461713766,0.001642,62266.0,62265.0,0.84792138]
[1728461714025,0.001642,62266.0,62265.0,0.69882644]
[1728461714249,0.001642,62266.0,62265.0,0.66661644]
[1728461714480,0.001642,62266.0,62265.0,0.67061644]
[1728461714969,0.001642,62266.0,62265.0,0.67461644]
[1728461715496,0.001642,62266.0,62265.0,0.67061644]
[1728461716015,0.001642,62266.0,62265.0,0.57521644]
[1728461716294,0.001642,62266.0,62265.0,0.57121644]
[1728461716754,0.001642,62266.0,62265.0,0.57521644]
[1728461716755,0.002642,62266.0,62265.0,0.57521644]
[1728461716989,0.001642,62266.0,62265.0,0.57521644]
[1728461717219,0.002642,62266.0,62265.0,0.57121644]
[1728461717914,0.003642,62266.0,62265.0,0.57121644]
[1728461718133,0.002642,62266.0,62265.0,0.57121644]
[1728461718568,0.003642,62266.0,62265.0,0.57121644]
[1728461721253,0.003642,62266.0,62265.0,0.78241138]
[1728461721682,0.003642,62266.0,62265.0,0.78741138]
[1728461722599,0.002642,62266.0,62265.0,0.78741138]
[1728461722816,0.001642,62266.0,62265.0,0.78741138]
[1728461723274,0.001642,62266.0,62265.0,0.78241138]
[1728461723516,0.001642,62266.0,62265.0,0.78741138]
[1728461723757,0.002642,62266.0,62265.0,0.78741138]
[1728461723999,0.003642,62266.0,62265.0,0.78741138]
[1728461724472,0.003642,62266.0,62265.0,0.81041138]
[1728461725019,0.002642,62266.0,62265.0,0.81041138]
[1728461725492,0.001642,62266.0,62265.0,0.81041138]
[1728461726675,0.001642,62266.0,62265.0,0.87370675]
[1728461727321,0.001642,62266.0,62265.0,0.87870675]
[1728461727783,0.001642,62266.0,62265.0,0.88170675]
[1728461727994,0.001642,62266.0,62265.0,0.87870675]
[1728461728432,0.001642,62266.0,62265.0,0.87670675]
[1728461729573,0.001642,62266.0,62265.0,0.87370675]
[1728461730010,0.001642,62266.0,62265.0,0.87970675]
[1728461730257,0.001642,62266.0,62265.0,0.87670675]
[1728461731135,0.001642,62266.0,62265.0,0.87970675]
[1728461731353,0.001642,62266.0,62265.0,0.87670675]
[1728461731787,0.001642,62266.0,62265.0,0.87970675]
[1728461733719,0.001642,62266.0,62265.0,0.87670675]
[1728461733851,0.001642,62266.0,62265.0,0.87570675]
[1728461734076,0.001642,62266.0,62265.0,0.87770675]
[1728461734278,0.001642,62266.0,62265.0,0.87570675]
[1728461734711,0.001642,62266.0,62265.0,0.87770675]
[1728461735388,0.001642,62266.0,62265.0,0.87570675]
[1728461735822,0.001642,62266.0,62265.0,0.67031644]
[1728461736041,0.001642,62266.0,62265.0,0.57821644]
[1728461736268,0.001642,62266.0,62265.0,0.58021644]
[1728461736524,0.001642,62266.0,62265.0,0.57821644]
[1728461736744,0.001642,62266.0,62265.0,0.57621644]
[1728461736967,0.001642,62266.0,62265.0,0.57721644]
[1728461737193,0.001642,62266.0,62265.0,0.57621644]
[1728461737623,0.001642,62266.0,62265.0,0.57121644]
[1728461738084,0.002642,62266.0,62265.0,0.57121644]
[1728461739168,0.003642,62266.0,62265.0,0.57121644]
[1728461739372,0.003642,62266.0,62265.0,0.57621644]
[1728461739585,0.002642,62266.0,62265.0,0.57621644]
[1728461740010,0.002642,62266.0,62265.0,0.57821644]
[1728461740457,0.002642,62266.0,62265.0,0.57621644]
[1728461740665,0.003642,62266.0,62265.0,0.57621644]
[1728461741338,0.003642,62266.0,62265.0,0.57121644]
[1728461741575,0.003642,62266.0,62265.0,0.57621644]
[1728461744559,0.003642,62266.0,62265.0,0.76060675]
[1728461746671,0.003642,62266.0,62265.0,0.87520675]
[1728461747794,0.002642,62266.0,62265.0,0.87520675]
[1728461748261,0.001642,62266.0,62265.0,0.87520675]
[1728461748424,0.001642,62266.0,62265.0,0.81282773]
[1728461748645,0.001642,62266.0,62265.0,0.81182773]
[1728461749305,0.001642,62266.0,62265.0,0.81382773]
[1728461749451,0.001642,62266.0,62265.0,0.81282773]
[1728461749676,0.001642,62266.0,62265.0,0.81382773]
[1728461749887,0.001642,62266.0,62265.0,0.81282773]
[1728461750297,0.001642,62266.0,62265.0,0.81382773]